fUSD/lending_fUSD_20250313
["ID","MTS","AMOUNT","RATE_DAILY","PERIOD"]
[356058106,1741876258867,-1040.85,0.00028452,18]
[356058107,1741876258878,-1040.85,0.00028452,18]
[356058108,1741876258888,-873.29,0.00028452,18]
[356058109,1741876258898,-873.29,0.00028452,18]
[356058110,1741876258908,-1672.56,0.00028452,18]
[356058111,1741876258918,-1672.56,0.00028452,18]
[356058112,1741876258928,-990.950305,0.00028452,18]
[356058113,1741876258938,-990.950305,0.00028452,18]
[356058114,1741876258948,-500.0,0.00028452,18]
[356058115,1741876258958,-1005.71,0.00028452,18]
[356058116,1741876258968,-500.0,0.00028452,18]
[356058117,1741876258978,-1005.71,0.00028452,18]
[356058118,1741876258988,-1924.86,0.00028452,18]
[356058119,1741876259000,-1924.86,0.00028452,18]
[356058120,1741876259010,-1081.26,0.00028452,18]
[356058121,1741876259020,-1081.26,0.00028452,18]
[356058122,1741876259030,-1799.0,0.00028452,18]
[356058123,1741876259040,-1257.53,0.00028452,18]
[356058124,1741876259051,-1799.0,0.00028452,18]
[356058125,1741876259060,-1257.53,0.00028452,18]
[356058126,1741876259071,-724.99,0.00028452,18]
[356058127,1741876259080,-500.0,0.00028452,18]
[356058128,1741876259090,-724.99,0.00028452,18]
[356058129,1741876259101,-504.59288739,0.00028452,18]
[356058130,1741876259111,-2581.51,0.00028452,18]
[356058131,1741876259120,-2581.51,0.00028452,18]
[356058132,1741876259130,-756.25,0.00028452,18]
[356058133,1741876259140,-756.25,0.00028452,18]
[356058134,1741876259150,-3036.77,0.00028452,2]
[356058135,1741876259160,-816.81,0.00028452,18]
[356058136,1741876259170,-500.0,0.00028452,18]
[356058137,1741876259180,-816.81,0.00028452,18]
[356058138,1741876259189,-3036.77,0.00028452,2]
[356058139,1741876259199,-500.0,0.00028452,18]
[356058140,1741876259209,-1291.5,0.00028452,18]
[356058141,1741876259219,-1291.5,0.00028452,18]
[356058142,1741876259229,-1256.38,0.00028452,18]
[356058143,1741876259239,-1256.38,0.00028452,18]
[356058144,1741876259251,-2043.15,0.00028452,18]
[356058145,1741876259260,-2043.15,0.00028452,18]
[356058146,1741876259270,-500.0,0.00028452,18]
[356058147,1741876259280,-500.0,0.00028452,18]
[356058148,1741876259290,-1536.02,0.00028452,18]
[356058149,1741876259300,-1536.02,0.00028452,18]
[356058150,1741876259309,-2978.55,0.00028452,18]
[356058151,1741876259319,-2978.55,0.00028452,18]
[356058152,1741876259328,-886.7,0.00028452,18]
[356058153,1741876259337,-886.7,0.00028452,18]
[356058154,1741876259347,-786.38,0.00028452,18]
[356058155,1741876259356,-786.38,0.00028452,18]
[356058156,1741876259366,-1223.97,0.00028452,18]
[356058157,1741876259376,-1223.97,0.00028452,18]
[356058158,1741876259386,-500.0,0.00028452,18]
[356058159,1741876259396,-500.0,0.00028452,18]
[356058160,1741876259406,-500.0,0.00028452,18]
[356058161,1741876259416,-500.0,0.00028452,18]
[356058162,1741876259427,-1197.82,0.00028452,18]
[356058163,1741876259437,-1197.82,0.00028452,18]
[356058164,1741876259446,-1197.82,0.00028452,18]
[356058165,1741876259456,-4392.83,0.00028452,18]
[356058166,1741876259466,-4392.83,0.00028452,18]
[356058167,1741876259477,-1713.05,0.00028452,18]
[356058168,1741876259486,-1713.05,0.00028452,18]
[356058169,1741876259496,-4190.37,0.00028452,18]
[356058170,1741876259508,-4190.37,0.00028452,18]
[356058171,1741876259518,-500.0,0.00028452,18]
[356058172,1741876259528,-500.0,0.00028452,18]
[356058173,1741876259538,-500.0,0.00028452,18]
[356058174,1741876259547,-500.0,0.00028452,18]
[356058175,1741876259557,-933.15,0.00028452,18]
[356058176,1741876259566,-2625.73,0.00028452,18]
[356058177,1741876259577,-2625.73,0.00028452,18]
[356058178,1741876259587,-933.15,0.00028452,18]
[356058179,1741876259599,-933.15,0.00028452,18]
[356058180,1741876259608,-1368.68,0.00028452,18]
[356058181,1741876259618,-1001.07,0.00028452,18]
[356058182,1741876259628,-1368.68,0.00028452,18]
[356058183,1741876259638,-1001.07,0.00028452,18]
[356058184,1741876259648,-1311.98,0.00028452,18]
[356058185,1741876259658,-1311.98,0.00028452,18]
[356058186,1741876259667,-577.2152399,0.00028452,18]
[356058187,1741876259678,-1327.03,0.00028452,18]
[356058188,1741876259687,-1327.03,0.00028452,18]
[356058189,1741876259697,-1532.45,0.00028452,18]
[356058190,1741876259707,-1532.45,0.00028452,18]
[356058191,1741876259716,-500.0,0.00028452,18]
[356058192,1741876259726,-160.79667756,0.00028452,18]
[356058193,1741876259735,-732.35,0.00028452,18]
[356058194,1741876259745,-732.35,0.00028452,18]
[356058195,1741876259754,-1002.73,0.00028452,18]
[356058196,1741876259764,-1002.73,0.00028452,18]
[356058197,1741876259855,-500.0,0.00028452,18]
[356058198,1741876259865,-500.0,0.00028452,18]
[356058199,1741876259875,-815.35,0.00028452,18]
[356058200,1741876259885,-815.35,0.00028452,18]
[356058201,1741876259894,-500.0,0.00028452,18]
[356058202,1741876259903,-499.30593562,0.00028452,18]
[356058203,1741876259913,-933.54,0.00028452,18]
[356058204,1741876259923,-933.54,0.00028452,18]
[356058205,1741876259932,-2278.09,0.00028452,18]
[356058206,1741876259942,-2278.09,0.00028452,18]
[356058207,1741876259952,-500.0,0.00028452,18]
[356058208,1741876259961,-2118.55,0.00028452,18]
[356058209,1741876259971,-500.0,0.00028452,18]
[356058210,1741876259981,-1393.99432705,0.00028452,18]
[356058211,1741876260001,-724.55567295,0.00028452,18]
[356058212,1741876260011,-694.82,0.00028452,10]
[356058213,1741876260021,-694.82,0.00028452,10]
[356058214,1741876260031,-677.18,0.00028452,18]
[356058215,1741876260040,-677.18,0.00028452,18]
[356058216,1741876260050,-526.47129012,0.00028452,18]
[356058217,1741876260060,-500.0,0.00028452,18]
[356058218,1741876260070,-2064.74394666,0.00028452,18]
[356058219,1741876260081,-288.20605334,0.00028452,18]
[356058220,1741876260091,-146.55395166,0.00028452,18]
[356058221,1741876260102,-353.44604834,0.00028452,18]
[356058222,1741876260111,-504.40375515,0.00028452,18]
[356058223,1741876260120,-2352.95,0.00028452,18]
[356058224,1741876260130,-306.47724726,0.00028452,18]
[356058225,1741876260140,-3084.13,0.00028452,18]
[356058226,1741876260149,-3084.13,0.00028452,18]
[356058227,1741876260158,-500.0,0.00028452,18]
[356058228,1741876260167,-503.58317629,0.00028452,18]
[356058229,1741876260177,-1680.02,0.00028452,18]
[356058230,1741876260186,-1680.02,0.00028452,18]
[356058231,1741876260195,-786.62,0.00028452,18]
[356058232,1741876260205,-786.62,0.00028452,18]
[356058233,1741876260214,-500.0,0.00028452,18]
[356058234,1741876260223,-500.0,0.00028452,18]
[356058235,1741876260233,-500.0,0.00028452,18]
[356058236,1741876260243,-5373.62,0.00028452,18]
[356058237,1741876260253,-5373.62,0.00028452,18]
[356058238,1741876260262,-500.0,0.00028452,18]
[356058239,1741876260271,-500.0,0.00028452,18]
[356058240,1741876260281,-1010.28,0.00028452,18]
[356058241,1741876260290,-1010.28,0.00028452,18]
[356058242,1741876260300,-500.0,0.00028452,18]
[356058243,1741876260310,-500.0,0.00028452,18]
[356058244,1741876260320,-503.1668487,0.00028452,18]
[356058245,1741876260329,-500.0,0.00028452,18]
[356058246,1741876260339,-503.06887158,0.00028452,18]
[356058247,1741876260349,-633.83,0.00028452,18]
[356058248,1741876260358,-633.83,0.00028452,18]
[356058249,1741876260367,-633.83,0.00028452,18]
[356058250,1741876260376,-500.0,0.00028452,18]
[356058251,1741876260386,-505.57376075,0.00028452,18]
[356058252,1741876260395,-1619.87,0.00028452,18]
[356058253,1741876260404,-1619.87,0.00028452,18]
[356058254,1741876260413,-919.71,0.00028452,18]
[356058255,1741876260423,-919.71,0.00028452,18]
[356058256,1741876260438,-506.01213333,0.00028452,18]
[356058257,1741876260447,-886.07,0.00028452,18]
[356058258,1741876260456,-886.07,0.00028452,18]
[356058259,1741876260467,-886.07,0.00028452,18]
[356058260,1741876260476,-543.06,0.00028452,18]
[356058261,1741876260486,-543.06,0.00028452,18]
[356058262,1741876260496,-1495.99,0.00028452,18]
[356058263,1741876260506,-743.43,0.00028452,18]
[356058264,1741876260515,-743.43,0.00028452,18]
[356058265,1741876260525,-1495.99,0.00028452,18]
[356058266,1741876260534,-500.88865134,0.00028452,18]
[356058267,1741876260543,-1363.41,0.00028452,18]
[356058268,1741876260553,-1363.41,0.00028452,18]
[356058269,1741876260562,-502.48943055,0.00028452,18]
[356058270,1741876260571,-1504.19,0.00028452,18]
[356058271,1741876260580,-1504.19,0.00028452,18]
[356058272,1741876260590,-500.0,0.00028452,18]
[356058273,1741876260600,-1504.19,0.00028452,18]
[356058274,1741876260609,-500.0,0.00028452,18]
[356058275,1741876260619,-769.22,0.00028452,18]
[356058276,1741876260629,-769.22,0.00028452,18]
[356058277,1741876260638,-1254.05,0.00028452,18]
[356058278,1741876260648,-1254.05,0.00028452,18]
[356058279,1741876260658,-6428.23,0.00028452,18]
[356058280,1741876260668,-6428.23,0.00028452,18]
[356058281,1741876260678,-440.73699712,0.00028452,18]
[356058282,1741876260688,-1479.02,0.00028452,18]
[356058283,1741876260698,-1479.02,0.00028452,18]
[356058284,1741876260708,-501.58156039,0.00028452,18]
[356058285,1741876260717,-500.0,0.00028452,18]
[356058286,1741876260727,-537.87,0.00028452,18]
[356058287,1741876260737,-537.87,0.00028452,18]
[356058288,1741876260750,-373.54073523,0.00028452,18]
[356058289,1741876260759,-1656.25,0.00028452,18]
[356058290,1741876260768,-1656.25,0.00028452,18]
[356058291,1741876260777,-1723.24,0.00028452,18]
[356058292,1741876260787,-1723.24,0.00028452,18]
[356058293,1741876260796,-500.0,0.00028452,18]
[356058294,1741876260806,-500.0,0.00028452,18]
[356058295,1741876260818,-506.7428936,0.00028452,18]
[356058296,1741876260827,-865.82,0.00028452,18]
[356058297,1741876260836,-865.82,0.00028452,18]
[356058298,1741876260845,-500.0,0.00028452,18]
[356058299,1741876260855,-508.52921696,0.00028452,18]
[356058300,1741876260864,-502.32853573,0.00028452,18]
[356058301,1741876260873,-504.5161556,0.00028452,18]
[356058302,1741876260882,-500.0,0.00028452,18]
[356058303,1741876260892,-336.61108257,0.00028452,18]
[356058304,1741876260901,-1719.76,0.00028452,18]
[356058305,1741876260910,-1719.76,0.00028452,18]
[356058306,1741876260919,-1719.76,0.00028452,18]
[356058307,1741876260929,-500.0,0.00028452,18]
[356058308,1741876260938,-3245.44,0.00028452,18]
[356058309,1741876260947,-500.0,0.00028452,18]
[356058310,1741876260956,-3245.44,0.00028452,18]
[356058311,1741876260966,-635.53,0.00028452,18]
[356058312,1741876260976,-635.53,0.00028452,18]
[356058313,1741876260985,-500.0,0.00028452,18]
[356058314,1741876260997,-500.0,0.00028452,18]
[356058315,1741876261007,-500.0,0.00028452,18]
[356058316,1741876261016,-500.0,0.00028452,18]
[356058317,1741876261026,-501.0062659,0.00028452,18]
[356058318,1741876261035,-511.95,0.00028452,18]
[356058319,1741876261044,-511.95,0.00028452,18]
[356058320,1741876261053,-500.0,0.00028452,18]
[356058321,1741876261063,-1748.46,0.00028452,18]
[356058322,1741876261071,-500.0,0.00028452,18]
[356058323,1741876261081,-1748.46,0.00028452,18]
[356058324,1741876261090,-1748.46,0.00028452,18]
[356058325,1741876261100,-500.0,0.00028452,18]
[356058326,1741876261109,-500.0,0.00028452,18]
[356058327,1741876261118,-220.3634002,0.00028452,18]
[356058328,1741876261128,-500.0,0.00028452,18]
[356058329,1741876261137,-500.0,0.00028452,18]
[356058330,1741876261146,-153.58117416,0.00028452,10]
[356058331,1741876261159,-131.39503195,0.00028452,10]
[356058332,1741876261169,-664.68,0.00028452,18]
[356058333,1741876261178,-664.68,0.00028452,18]
[356058334,1741876261188,-968.6,0.00028452,18]
[356058335,1741876261197,-968.6,0.00028452,18]
[356058336,1741876261207,-500.0,0.00028452,18]
[356058337,1741876261216,-961.73,0.00028452,18]
[356058338,1741876261226,-500.0,0.00028453,18]
[356058339,1741876261235,-500.0,0.00028453,18]
[356058340,1741876261246,-517.415148,0.00028453,18]
[356058341,1741876261257,-500.0,0.00028453,18]
[356058342,1741876261267,-500.0,0.00028453,18]
[356058343,1741876261276,-500.0,0.00028453,18]
[356058344,1741876261286,-500.0,0.00028453,18]
[356058345,1741876261295,-501.07777024,0.00028453,18]
[356058346,1741876261305,-503.91057718,0.00028453,18]
[356058347,1741876261315,-500.0,0.00028453,18]
[356058348,1741876261324,-500.0,0.00028453,18]
[356058349,1741876261334,-500.0,0.00028453,18]
[356058350,1741876261344,-500.0,0.00028453,18]
[356058351,1741876261354,-506.12335379,0.00028453,18]
[356058352,1741876261363,-500.0,0.00028453,18]
[356058353,1741876261373,-504.87497717,0.00028453,18]
[356058354,1741876261383,-500.0,0.00028453,18]
[356058355,1741876261394,-500.0,0.00028453,18]
[356058356,1741876261403,-500.0,0.00028453,18]
[356058357,1741876261414,-500.0,0.00028453,18]
[356058358,1741876261425,-500.0,0.00028453,18]
[356058359,1741876261438,-500.0,0.00028453,18]
[356058360,1741876261448,-500.0,0.00028453,18]
[356058361,1741876261457,-500.0,0.00028453,18]
[356058362,1741876261468,-500.0,0.00028453,18]
[356058363,1741876261477,-500.0,0.00028453,18]
[356058364,1741876261487,-500.0,0.00028453,18]
[356058365,1741876261499,-156.58767845,0.00028453,18]
[356058366,1741876261511,-500.0,0.00028453,18]
[356058367,1741876261520,-500.0,0.00028453,18]
[356058368,1741876261530,-405.50133856,0.00028453,18]
[356058369,1741876261540,-1002.86,0.00028453,18]
[356058370,1741876261549,-1002.86,0.00028453,18]
[356058371,1741876261559,-500.0,0.00028453,18]
[356058372,1741876261569,-500.0,0.00028453,18]
[356058373,1741876261578,-512.9837485,0.00028453,18]
[356058374,1741876261588,-505.60418286,0.00028453,18]
[356058375,1741876261597,-259.59320535,0.00028453,18]
[356058376,1741876261607,-500.0,0.00028453,18]
[356058377,1741876261617,-500.0,0.00028453,18]
[356058378,1741876261626,-500.0,0.00028453,18]
[356058379,1741876261636,-500.0,0.00028453,18]
[356058380,1741876261646,-500.0,0.00028453,18]
[356058381,1741876261655,-500.0,0.00028453,18]
[356058382,1741876261666,-500.0,0.00028453,18]
[356058383,1741876261676,-500.0,0.00028453,18]
[356058384,1741876261685,-500.0,0.00028453,18]
[356058385,1741876261696,-416.46971757,0.00028453,18]
[356058386,1741876261706,-500.0,0.00028453,18]
[356058387,1741876261716,-152.76890463,0.00028453,18]
[356058388,1741876261725,-721.2,0.00028453,18]
[356058389,1741876261740,-721.2,0.00028453,18]
[356058390,1741876261752,-504.42322607,0.00028453,18]
[356058391,1741876261762,-500.0,0.00028453,18]
[356058392,1741876261771,-500.0,0.00028453,18]
[356058393,1741876261782,-747.18,0.00028453,18]
[356058394,1741876261791,-747.18,0.00028453,18]
[356058395,1741876261801,-234.06060317,0.00028453,18]
[356058396,1741876261811,-293.06771922,0.00028453,18]
[356058397,1741876261821,-500.0,0.00028453,18]
[356058398,1741876261831,-500.0,0.00028453,18]
[356058399,1741876261841,-500.0,0.00028453,18]
[356058400,1741876261850,-500.0,0.00028453,18]
[356058401,1741876261860,-500.0,0.00028453,18]
[356058402,1741876261870,-500.0,0.00028453,18]
[356058403,1741876261881,-500.0,0.00028453,18]
[356058404,1741876261891,-500.0,0.00028453,18]
[356058405,1741876261901,-500.0,0.00028453,18]
[356058406,1741876261911,-500.0,0.00028453,18]
[356058407,1741876261922,-504.63534028,0.00028453,18]
[356058408,1741876261932,-889.84,0.00028453,18]
[356058409,1741876261942,-889.84,0.00028453,18]
[356058410,1741876261952,-510.08658622,0.00028453,18]
[356058411,1741876261962,-502.28717853,0.00028453,18]
[356058412,1741876261972,-500.0,0.00028453,18]
[356058413,1741876261981,-522.28452058,0.00028453,18]
[356058414,1741876261991,-500.0,0.00028453,18]
[356058415,1741876262006,-500.0,0.00028453,18]
[356058416,1741876262016,-500.0,0.00028453,18]
[356058417,1741876262025,-500.0,0.00028453,18]
[356058418,1741876262035,-500.0,0.00028453,18]
[356058419,1741876262044,-500.0,0.00028453,18]
[356058420,1741876262054,-500.0,0.00028453,18]
[356058421,1741876262065,-503.59245724,0.00028453,18]
[356058422,1741876262075,-500.0,0.00028453,18]
[356058423,1741876262085,-500.0,0.00028453,18]
[356058424,1741876262096,-500.0,0.00028453,18]
[356058425,1741876262106,-515.20041174,0.00028453,18]
[356058426,1741876262116,-500.0,0.00028453,18]
[356058427,1741876262126,-500.0,0.00028453,18]
[356058428,1741876262136,-500.0,0.00028453,18]
[356058429,1741876262147,-500.0,0.00028453,18]
[356058430,1741876262157,-500.0,0.00028453,18]
[356058431,1741876262166,-500.0,0.00028453,18]
[356058432,1741876262176,-500.0,0.00028453,18]
[356058433,1741876262185,-500.0,0.00028453,18]
[356058434,1741876262195,-500.0,0.00028453,18]
[356058435,1741876262205,-501.1924074,0.00028453,18]
[356058436,1741876262215,-500.0,0.00028453,18]
[356058437,1741876262226,-500.0,0.00028453,18]
[356058438,1741876262235,-502.63761321,0.00028453,18]
[356058439,1741876262248,-500.0,0.00028453,18]
[356058440,1741876262257,-500.0,0.00028453,18]
[356058441,1741876262266,-500.0,0.00028453,18]
[356058442,1741876262275,-500.0,0.00028453,18]
[356058443,1741876262285,-500.0,0.00028453,18]
[356058444,1741876262294,-500.0,0.00028453,18]
[356058445,1741876262303,-500.0,0.00028453,18]
[356058446,1741876262313,-500.0,0.00028453,18]
[356058447,1741876262322,-500.0,0.00028453,18]
[356058448,1741876262332,-500.0,0.00028453,18]
[356058449,1741876262341,-500.0,0.00028453,18]
[356058450,1741876262350,-500.0,0.00028453,18]
[356058451,1741876262359,-500.0,0.00028453,18]
[356058452,1741876262369,-500.0,0.00028453,18]
[356058453,1741876262378,-500.0,0.00028453,18]
[356058454,1741876262387,-500.0,0.00028453,18]
[356058455,1741876262396,-500.0,0.00028453,18]
[356058456,1741876262406,-500.0,0.00028453,18]
[356058457,1741876262416,-500.0,0.00028453,18]
[356058458,1741876262431,-500.0,0.00028453,18]
[356058459,1741876262440,-500.0,0.00028453,18]
[356058460,1741876262450,-502.43035992,0.00028453,18]
[356058461,1741876262459,-500.0,0.00028453,18]
[356058462,1741876262469,-500.0,0.00028453,18]
[356058463,1741876262479,-500.0,0.00028453,18]
[356058464,1741876262489,-500.0,0.00028453,18]
[356058465,1741876262504,-500.0,0.00028453,18]
[356058466,1741876262514,-500.0,0.00028453,18]
[356058467,1741876262524,-500.0,0.00028453,18]
[356058468,1741876262535,-500.0,0.00028453,18]
[356058469,1741876262544,-538.17,0.00028453,18]
[356058470,1741876262554,-538.17,0.00028453,18]
[356058471,1741876262564,-500.0,0.00028453,18]
[356058472,1741876262574,-500.0,0.00028453,18]
[356058473,1741876262584,-500.0,0.00028453,18]
[356058474,1741876262594,-500.0,0.00028453,18]
[356058475,1741876262604,-500.0,0.00028453,18]
[356058476,1741876262614,-500.0,0.00028453,18]
[356058477,1741876262625,-500.0,0.00028453,18]
[356058478,1741876262635,-500.0,0.00028453,18]
[356058479,1741876262645,-500.0,0.00028453,18]
[356058480,1741876262657,-500.0,0.00028453,18]
[356058481,1741876262668,-500.0,0.00028453,18]
[356058482,1741876262679,-500.0,0.00028453,18]
[356058483,1741876262694,-500.0,0.00028453,18]
[356058484,1741876262704,-500.0,0.00028453,18]
[356058485,1741876262716,-500.0,0.00028453,18]
[356058486,1741876262726,-500.0,0.00028453,18]
[356058487,1741876262736,-500.0,0.00028453,18]
[356058488,1741876262747,-500.0,0.00028453,18]
[356058489,1741876262757,-500.0,0.00028453,18]
[356058490,1741876262767,-500.0,0.00028453,18]
[356058491,1741876262777,-500.0,0.00028453,18]
[356058492,1741876262787,-500.0,0.00028453,18]
[356058493,1741876262797,-500.0,0.00028453,18]
[356058494,1741876262807,-500.0,0.00028453,18]
[356058495,1741876262818,-500.0,0.00028453,18]
[356058496,1741876262828,-500.0,0.00028453,18]
[356058497,1741876262838,-500.0,0.00028453,18]
[356058498,1741876262848,-500.0,0.00028453,18]
[356058499,1741876262858,-500.0,0.00028453,18]
[356058500,1741876262868,-500.0,0.00028453,18]
[356058501,1741876262878,-500.0,0.00028453,18]
[356058502,1741876262888,-500.0,0.00028453,18]
[356058503,1741876262898,-500.0,0.00028453,18]
[356058504,1741876262908,-500.0,0.00028453,18]
[356058505,1741876262918,-500.0,0.00028453,18]
[356058506,1741876262928,-500.0,0.00028453,18]
[356058507,1741876262938,-500.0,0.00028453,18]
[356058508,1741876262949,-500.0,0.00028453,18]
[356058509,1741876262959,-500.0,0.00028453,18]
[356058510,1741876262969,-500.0,0.00028453,18]
[356058511,1741876262979,-500.0,0.00028453,18]
[356058512,1741876262989,-500.0,0.00028453,18]
[356058513,1741876263002,-500.0,0.00028453,18]
[356058514,1741876263012,-500.0,0.00028453,18]
[356058515,1741876263023,-405.52,0.00028453,7]
[356058516,1741876263034,-405.52,0.00028453,7]
[356058517,1741876263044,-500.0,0.00028453,18]
[356058518,1741876263055,-500.0,0.00028453,18]
[356058519,1741876263065,-500.0,0.00028453,18]
[356058520,1741876263075,-500.0,0.00028453,18]
[356058521,1741876263085,-500.0,0.00028453,18]
[356058522,1741876263095,-500.0,0.00028453,18]
[356058523,1741876263105,-500.0,0.00028453,18]
[356058524,1741876263115,-500.0,0.00028453,18]
[356058525,1741876263126,-500.0,0.00028453,18]
[356058526,1741876263137,-500.0,0.00028453,18]
[356058527,1741876263147,-500.0,0.00028453,18]
[356058528,1741876263157,-500.0,0.00028453,18]
[356058529,1741876263167,-500.0,0.00028453,18]
[356058530,1741876263178,-66.63136301,0.00028453,18]
[356058531,1741876263219,-500.0,0.00028444,18]
[356058532,1741876263240,-0.76383262,0.00028444,18]
[356058533,1741876263254,-500.0,0.00028452,18]
[356058534,1741876263264,-433.36863699,0.00028453,18]
[356058535,1741876263274,-500.0,0.00028453,18]
[356058536,1741876263285,-500.0,0.00028453,18]
[356058537,1741876263295,-500.0,0.00028453,18]
[356058538,1741876263306,-34.08602758,0.00028453,18]
[356058539,1741876263335,-768.53,0.00028438,18]
[356058540,1741876263345,-961.73,0.00028452,18]
[356058541,1741876263355,-358.815482,0.00028453,18]
[356058542,1741876263368,-107.09849042,0.00028453,18]
[356058543,1741876263378,-500.0,0.00028453,18]
[356058544,1741876263388,-505.72396668,0.00028453,18]
[356058545,1741876263398,-500.0,0.00028453,18]
[356058546,1741876263407,-500.0,0.00028453,18]
[356058547,1741876263418,-500.0,0.00028453,18]
[356058548,1741876263430,-505.19106077,0.00028453,18]
[356058549,1741876263440,-500.0,0.00028453,18]
[356058550,1741876263450,-500.0,0.00028453,18]
[356058551,1741876263460,-500.0,0.00028453,18]
[356058552,1741876263471,-500.0,0.00028453,18]
[356058553,1741876263481,-500.0,0.00028453,18]
[356058554,1741876263491,-500.0,0.00028453,18]
[356058555,1741876263504,-500.9741055,0.00028453,18]
[356058556,1741876263515,-500.0,0.00028453,18]
[356058557,1741876263525,-500.0,0.00028453,18]
[356058558,1741876263535,-500.0,0.00028453,18]
[356058559,1741876263545,-500.0,0.00028453,18]
[356058560,1741876263556,-503.61434412,0.00028453,18]
[356058561,1741876263566,-500.0,0.00028453,18]
[356058562,1741876263576,-500.0,0.00028453,18]
[356058563,1741876263586,-500.0,0.00028453,18]
[356058564,1741876263596,-500.85699949,0.00028453,18]
[356058565,1741876263606,-500.0,0.00028453,18]
[356058566,1741876263616,-500.0,0.00028453,18]
[356058567,1741876263626,-500.0,0.00028453,18]
[356058568,1741876263636,-500.0,0.00028453,18]
[356058569,1741876263646,-500.0,0.00028453,18]
[356058570,1741876263657,-500.0,0.00028453,18]
[356058571,1741876263667,-676.04,0.00028453,18]
[356058572,1741876263677,-676.04,0.00028453,18]
[356058573,1741876263687,-512.98,0.00028453,18]
[356058574,1741876263697,-512.98,0.00028453,18]
[356058575,1741876263707,-500.0,0.00028453,18]
[356058576,1741876263718,-500.0,0.00028453,18]
[356058577,1741876263728,-500.0,0.00028453,18]
[356058578,1741876263739,-500.0,0.00028453,18]
[356058579,1741876263750,-546.83,0.00028453,18]
[356058580,1741876263760,-546.83,0.00028453,18]
[356058581,1741876263771,-500.0,0.00028453,18]
[356058582,1741876263781,-500.0,0.00028453,18]
[356058583,1741876263792,-500.0,0.00028453,18]
[356058584,1741876263802,-500.0,0.00028453,18]
[356058585,1741876263814,-500.0,0.00028453,18]
[356058586,1741876263824,-500.75847671,0.00028453,18]
[356058587,1741876263834,-500.0,0.00028453,18]
[356058588,1741876263844,-500.0,0.00028453,18]
[356058589,1741876263854,-500.0,0.00028453,18]
[356058590,1741876263868,-500.0,0.00028453,18]
[356058591,1741876263881,-500.0,0.00028453,18]
[356058592,1741876263897,-451.93159107,0.00028453,18]
[356058593,1741876263908,-500.0,0.00028453,18]
[356058594,1741876263919,-500.0,0.00028453,18]
[356058595,1741876263929,-500.0,0.00028453,18]
[356058596,1741876263939,-500.0,0.00028453,18]
[356058597,1741876263950,-500.0,0.00028453,18]
[356058598,1741876263960,-443.7083828,0.00028453,18]
[356058599,1741876263970,-500.0,0.00028453,18]
[356058600,1741876263980,-500.0,0.00028453,18]
[356058601,1741876263991,-500.0,0.00028453,18]
[356058602,1741876264006,-500.0,0.00028453,18]
[356058603,1741876264018,-500.0,0.00028453,18]
[356058604,1741876264030,-500.0,0.00028453,18]
[356058605,1741876264041,-500.0,0.00028453,18]